fUSD/lending_fUSD_20241221
["ID","MTS","AMOUNT","RATE_DAILY","PERIOD"]
[346227954,1734786638621,-500.0,0.00019674,2]
[346227955,1734786638633,-500.0,0.00019674,2]
[346227956,1734786638644,-500.0,0.00019674,2]
[346227957,1734786638658,-505.3822666,0.00019674,2]
[346227958,1734786638669,-500.0,0.00019674,2]
[346227959,1734786638680,-500.0,0.00019674,2]
[346227960,1734786638691,-500.0,0.00019674,2]
[346227961,1734786638702,-500.0,0.00019674,2]
[346227962,1734786638712,-641.73718744,0.00019674,2]
[346227963,1734786638723,-500.0,0.00019674,2]
[346227964,1734786638735,-243.58520973,0.00019674,2]
[346227965,1734786638745,-500.0,0.00019674,2]
[346227966,1734786638755,-324.0,0.00019674,2]
[346227967,1734786638766,-322.58858881,0.00019674,2]
[346227968,1734786638777,-500.0,0.00019674,2]
[346227969,1734786638788,-500.0,0.00019674,2]
[346227970,1734786638799,-500.0,0.00019674,2]
[346227971,1734786638810,-423.96912288,0.00019674,2]
[346227972,1734786638821,-500.0,0.00019674,2]
[346227973,1734786638832,-500.0,0.00019674,2]
[346227974,1734786638843,-500.0,0.00019674,2]
[346227975,1734786638853,-500.0,0.00019674,2]
[346227976,1734786638864,-500.0,0.00019674,2]
[346227977,1734786638875,-500.0,0.00019674,2]
[346227978,1734786638887,-257.78382217,0.00019674,2]
[346227979,1734786638903,-242.21617783,0.00019674,2]
[346227980,1734786638913,-500.0,0.00019674,2]
[346227981,1734786638924,-500.0,0.00019674,2]
[346227982,1734786638936,-500.0,0.00019674,2]
[346227983,1734786638947,-500.0,0.00019674,2]
[346227984,1734786638957,-500.0,0.00019674,2]
[346227985,1734786638968,-500.0,0.00019674,2]
[346227986,1734786638979,-500.0,0.00019674,2]
[346227987,1734786638990,-500.0,0.00019674,2]
[346227988,1734786639001,-500.0,0.00019674,2]
[346227989,1734786639012,-500.0,0.00019674,2]
[346227990,1734786639022,-500.0,0.00019674,2]
[346227991,1734786639033,-500.0,0.00019674,2]
[346227992,1734786639044,-500.0,0.00019674,2]
[346227993,1734786639054,-500.0,0.00019674,2]
[346227994,1734786639065,-519.69,0.00019674,2]
[346227995,1734786639076,-500.0,0.00019674,2]
[346227996,1734786639086,-500.0,0.00019674,2]
[346227997,1734786639097,-623.27999996,0.00019674,2]
[346227998,1734786639107,-500.0,0.00019674,2]
[346227999,1734786639118,-500.0,0.00019674,2]
[346228000,1734786639129,-500.0,0.00019674,2]
[346228001,1734786639140,-500.0,0.00019674,2]
[346228002,1734786639151,-500.0,0.00019674,2]
[346228003,1734786639162,-500.0,0.00019674,2]
[346228004,1734786639172,-500.0,0.00019674,2]
[346228005,1734786639189,-500.0,0.00019674,2]
[346228006,1734786639202,-500.0,0.00019674,2]
[346228007,1734786639217,-500.0,0.00019674,2]
[346228008,1734786639229,-500.0,0.00019674,2]
[346228009,1734786639241,-500.0,0.00019674,2]
[346228010,1734786639253,-500.0,0.00019674,2]
[346228011,1734786639265,-500.0,0.00019674,2]
[346228012,1734786639276,-500.0,0.00019674,2]
[346228013,1734786639288,-500.0,0.00019674,2]
[346228014,1734786639300,-500.0,0.00019674,2]
[346228015,1734786639312,-263.77285852,0.00019674,2]
[346228016,1734786639324,-500.0,0.00019674,2]
[346228017,1734786639336,-500.0,0.00019674,2]
[346228018,1734786639347,-500.0,0.00019674,2]
[346228019,1734786639359,-500.0,0.00019674,2]
[346228020,1734786639371,-500.0,0.00019674,2]
[346228021,1734786639382,-500.0,0.00019674,2]
[346228022,1734786639394,-500.0,0.00019674,2]
[346228023,1734786639407,-500.0,0.00019674,2]
[346228024,1734786639418,-500.0,0.00019674,2]
[346228025,1734786639430,-500.0,0.00019674,2]
[346228026,1734786639441,-272.55668371,0.00019674,2]
[346228027,1734786639452,-500.0,0.00019674,2]
[346228028,1734786639463,-500.0,0.00019674,2]
[346228029,1734786639474,-91.10702064,0.00019674,2]
[346228030,1734786639489,-408.89297936,0.00019674,2]
[346228031,1734786639501,-230.00170247,0.00019674,2]
[346228032,1734786639512,-500.0,0.00019674,2]
[346228033,1734786639522,-500.0,0.00019674,2]
[346228034,1734786639534,-500.0,0.00019674,2]
[346228035,1734786639544,-500.0,0.00019674,2]
[346228036,1734786639555,-365.71374996,0.00019674,2]
[346228037,1734786639573,-134.28625004,0.00019674,2]
[346228038,1734786639584,-500.0,0.00019674,2]
[346228039,1734786639595,-500.0,0.00019674,2]
[346228040,1734786639606,-503.79,0.00019674,2]
[346228041,1734786639616,-500.0,0.00019674,2]
[346228042,1734786639627,-284.14472935,0.00019674,2]
[346228043,1734786639638,-500.0,0.00019674,2]
[346228044,1734786639649,-500.0,0.00019674,2]
[346228045,1734786639661,-500.0,0.00019674,2]
[346228046,1734786639672,-77.77902011,0.00019674,2]
[346228047,1734786639685,-422.22097989,0.00019674,2]
[346228048,1734786639696,-500.0,0.00019674,2]
[346228049,1734786639706,-500.0,0.00019674,2]
[346228050,1734786639717,-500.0,0.00019674,2]
[346228051,1734786639728,-366.37248529,0.00019674,2]
[346228052,1734786639738,-474.10021586,0.00019674,2]
[346228053,1734786639753,-500.0,0.00019674,2]
[346228054,1734786639764,-500.0,0.00019674,2]
[346228055,1734786639775,-554.86,0.00019674,2]
[346228056,1734786639785,-500.0,0.00019674,2]
[346228057,1734786639795,-500.0,0.00019674,2]
[346228058,1734786639806,-500.0,0.00019674,2]
[346228059,1734786639816,-500.0,0.00019674,2]
[346228060,1734786639827,-500.0,0.00019674,2]
[346228061,1734786639837,-500.0,0.00019674,2]
[346228062,1734786639846,-500.0,0.00019674,2]
[346228063,1734786639856,-500.0,0.00019674,2]
[346228064,1734786639866,-500.0,0.00019674,2]
[346228065,1734786639875,-500.0,0.00019674,2]
[346228066,1734786639885,-500.0,0.00019674,2]
[346228067,1734786639894,-500.0,0.00019674,2]
[346228068,1734786639906,-500.0,0.00019674,2]
[346228069,1734786639915,-500.0,0.00019674,2]
[346228070,1734786639925,-500.0,0.00019674,2]
[346228071,1734786639935,-500.0,0.00019674,2]
[346228072,1734786639945,-500.0,0.00019674,2]
[346228073,1734786639955,-500.0,0.00019674,2]
[346228074,1734786639964,-500.0,0.00019674,2]
[346228075,1734786639973,-1623.79,0.00019674,2]
[346228076,1734786639983,-500.0,0.00019674,2]
[346228077,1734786639992,-500.0,0.00019674,2]
[346228078,1734786640341,-500.0,0.00019674,2]
[346228079,1734786640359,-500.0,0.00019674,2]
[346228080,1734786640373,-500.0,0.00019674,2]
[346228081,1734786640382,-500.0,0.00019674,2]
[346228082,1734786640390,-500.0,0.00019674,2]
[346228083,1734786640399,-500.0,0.00019674,2]
[346228084,1734786640412,-500.0,0.00019674,2]
[346228085,1734786640420,-500.0,0.00019674,2]
[346228086,1734786640429,-1163.94,0.00019674,2]
[346228087,1734786640438,-623.01031807,0.00019676,2]
[346228088,1734786640447,-150.0,0.00019679,2]
[346228089,1734786640457,-150.0,0.00019679,2]
[346228090,1734786640466,-932.53,0.0001969,2]
[346228091,1734786640475,-5000.0,0.000197,2]
[346228092,1734786640484,-2800.0,0.000197,7]
[346228093,1734786640492,-150.0,0.00019706,2]
[346228094,1734786640501,-932.53,0.0001971,2]
[346228095,1734786640510,-623.01031807,0.0001971,2]
[346228096,1734786640519,-150.0,0.00019716,2]
[346228097,1734786640528,-500.0,0.00019717,2]
[346228098,1734786640536,-1071.3,0.00019718,2]
[346228099,1734786640545,-500.0,0.00019718,2]
[346228100,1734786640554,-500.0,0.00019718,2]
[346228101,1734786640563,-834.67,0.00019718,2]
[346228102,1734786640572,-500.0,0.00019718,2]
[346228103,1734786640583,-500.0,0.00019718,2]
[346228104,1734786640593,-500.0,0.00019718,2]
[346228105,1734786640602,-725.66,0.00019718,2]
[346228106,1734786640611,-757.7,0.00019718,2]
[346228107,1734786640620,-1258.22,0.00019718,2]
[346228108,1734786640629,-500.0,0.00019718,2]
[346228109,1734786640638,-1653.21,0.00019718,2]
[346228110,1734786640647,-500.0,0.00019718,2]
[346228111,1734786640658,-655.57,0.00019718,2]
[346228112,1734786640667,-875.36,0.00019718,2]
[346228113,1734786640676,-500.0,0.00019718,2]
[346228114,1734786640686,-5753.89,0.00019718,2]
[346228115,1734786640695,-509.45,0.00019718,2]
[346228116,1734786640704,-1148.28,0.00019718,2]
[346228117,1734786640713,-1109.76,0.00019718,2]
[346228118,1734786640722,-500.0,0.00019718,2]
[346228119,1734786640732,-500.0,0.00019718,2]
[346228120,1734786640741,-500.0,0.00019718,2]
[346228121,1734786640750,-500.0,0.00019718,2]
[346228122,1734786640759,-500.0,0.00019718,2]
[346228123,1734786640768,-500.0,0.00019718,2]
[346228124,1734786640777,-500.0,0.00019718,2]
[346228125,1734786640787,-500.0,0.00019719,2]
[346228126,1734786640796,-500.0,0.00019719,2]
[346228127,1734786640806,-500.0,0.00019719,2]
[346228128,1734786640815,-911.92,0.00019719,2]
[346228129,1734786640824,-573.79,0.00019719,2]
[346228130,1734786640833,-500.0,0.00019719,2]
[346228131,1734786640842,-219.996834,0.00019719,2]
[346228132,1734786640851,-157.564534,0.00019719,2]
[346228133,1734786640860,-152.502649,0.00019719,2]
[346228134,1734786640870,-500.0,0.00019719,2]
[346228135,1734786640879,-701.61,0.00019719,2]
[346228136,1734786640889,-500.0,0.00019719,2]
[346228137,1734786640898,-500.0,0.00019719,2]
[346228138,1734786640911,-807.14,0.00019719,2]
[346228139,1734786640921,-500.0,0.00019719,2]
[346228140,1734786640931,-515.24,0.00019719,2]
[346228141,1734786640940,-500.0,0.00019719,2]
[346228142,1734786640949,-500.0,0.00019719,2]
[346228143,1734786640958,-583.62,0.00019719,2]
[346228144,1734786640968,-658.74,0.00019719,2]
[346228145,1734786640977,-500.0,0.00019719,2]
[346228146,1734786640986,-2490.26,0.00019719,2]
[346228147,1734786640996,-680.39,0.00019719,2]
[346228148,1734786641005,-1343.52,0.00019719,2]
[346228149,1734786641015,-500.0,0.00019719,2]
[346228150,1734786641024,-1328.3,0.00019719,2]
[346228151,1734786641034,-557.28,0.00019719,2]
[346228152,1734786641043,-744.34,0.00019719,2]
[346228153,1734786641053,-500.0,0.00019719,2]
[346228154,1734786641062,-337.17305363,0.00019719,2]
[346228155,1734786641071,-3554.53,0.00019719,2]
[346228156,1734786641081,-716.34,0.00019719,2]
[346228157,1734786641090,-717.26,0.00019719,2]
[346228158,1734786641100,-500.0,0.0001972,2]
[346228159,1734786641109,-500.0,0.0001972,2]
[346228160,1734786641118,-500.0,0.0001972,2]
[346228161,1734786641130,-500.0,0.0001972,2]
[346228162,1734786641139,-505.22892795,0.0001972,2]
[346228163,1734786641148,-500.0,0.0001972,2]
[346228164,1734786641162,-500.0,0.0001972,2]
[346228165,1734786641171,-500.0,0.0001972,2]
[346228166,1734786641180,-500.0,0.0001972,2]
[346228167,1734786641190,-500.0,0.0001972,2]
[346228168,1734786641199,-500.0,0.0001972,2]
[346228169,1734786641209,-500.0,0.0001972,2]
[346228170,1734786641218,-500.0,0.0001972,2]
[346228171,1734786641227,-500.0,0.0001972,2]
[346228172,1734786641237,-500.0,0.0001972,2]
[346228173,1734786641246,-500.0,0.0001972,2]
[346228174,1734786641256,-500.0,0.0001972,2]
[346228175,1734786641265,-500.0,0.0001972,2]
[346228176,1734786641275,-500.0,0.0001972,2]
[346228177,1734786641284,-500.0,0.0001972,2]
[346228178,1734786641293,-500.0,0.0001972,2]
[346228179,1734786641303,-275.18926828,0.0001972,2]
[346228180,1734786641312,-500.0,0.0001972,2]
[346228181,1734786641321,-500.0,0.0001972,2]
[346228182,1734786641331,-500.0,0.0001972,2]
[346228183,1734786641340,-500.0,0.0001972,2]
[346228184,1734786641349,-500.0,0.0001972,2]
[346228185,1734786641358,-500.0,0.0001972,2]
[346228186,1734786641367,-500.0,0.0001972,2]
[346228187,1734786641377,-500.0,0.0001972,2]
[346228188,1734786641386,-500.0,0.0001972,2]
[346228189,1734786641395,-227.63041596,0.0001972,2]
[346228190,1734786641487,-361.54,0.0001962,2]
[346228194,1734786643705,-2266.19564343,0.0001962,2]
[346228196,1734786643716,-2189.42483884,0.0001962,2]
[346228220,1734786644233,-182.83951773,0.0001962,2]
[346228221,1734786644244,-500.0,0.00019673,2]
[346228222,1734786644254,-171.76921112,0.00019718,2]
[346228238,1734786645880,-98.84788588,0.00019718,2]
[346228239,1734786645890,-500.0,0.00019718,2]
[346228240,1734786645900,-76.20153494,0.00019719,2]
[346228241,1734786645913,-806.64846506,0.00019719,2]
[346228242,1734786645923,-272.36958404,0.0001972,2]
[346228243,1734786645933,-500.0,0.0001972,2]
[346228244,1734786645942,-500.0,0.0001972,2]
[346228245,1734786645952,-356.7319509,0.0001972,2]
[346228246,1734786645971,-143.2680491,0.0001972,2]
[346228247,1734786645981,-500.0,0.0001972,2]
[346228248,1734786645991,-500.0,0.0001972,2]
[346228249,1734786645999,-500.0,0.0001972,2]
[346228250,1734786646009,-500.0,0.0001972,2]
[346228251,1734786646018,-500.0,0.0001972,2]
[346228252,1734786646027,-443.61747894,0.0001972,2]
[346228253,1734786646042,-56.38252106,0.0001972,2]
[346228254,1734786646052,-500.0,0.0001972,2]
[346228255,1734786646062,-500.0,0.0001972,2]
[346228256,1734786646071,-500.0,0.0001972,2]
[346228257,1734786646080,-500.0,0.0001972,2]
[346228258,1734786646089,-500.0,0.0001972,2]
[346228259,1734786646099,-500.0,0.0001972,2]
[346228260,1734786646108,-500.0,0.0001972,2]
[346228261,1734786646118,-501.6334393,0.0001972,2]
[346228262,1734786646127,-500.0,0.0001972,2]
[346228263,1734786646136,-500.0,0.0001972,2]
[346228264,1734786646145,-500.0,0.0001972,2]
[346228265,1734786646155,-500.0,0.0001972,2]
[346228266,1734786646167,-507.54293499,0.0001972,2]
[346228267,1734786646176,-500.0,0.0001972,2]
[346228268,1734786646185,-500.0,0.0001972,2]
[346228269,1734786646194,-500.0,0.0001972,2]
[346228270,1734786646204,-500.0,0.0001972,2]
[346228271,1734786646213,-500.0,0.0001972,2]
[346228272,1734786646223,-500.75906292,0.0001972,2]
[346228273,1734786646232,-500.0,0.0001972,2]
[346228274,1734786646241,-150.0,0.00019728,2]
[346228275,1734786646251,-150.0,0.00019728,2]
[346228276,1734786646261,-150.0,0.00019742,2]
[346228277,1734786646270,-150.0,0.00019743,2]
[346228278,1734786646279,-623.01031807,0.00019744,2]
[346228279,1734786646288,-150.0,0.00019753,2]
[346228280,1734786646461,-150.0,0.00019763,2]
[346228281,1734786646475,-153.89,0.00019764,2]
[346228282,1734786646484,-932.53,0.00019764,2]
[346228283,1734786646493,-932.53,0.00019764,2]
[346228284,1734786646502,-932.53,0.00019764,2]
[346228285,1734786646511,-150.0,0.00019765,2]
[346228286,1734786646521,-150.0,0.00019768,2]
[346228287,1734786646530,-154.7836262,0.00019773,2]
[346228288,1734786646539,-500.0,0.00019773,2]
[346228289,1734786646549,-258.89958878,0.00019773,2]
[346228290,1734786646558,-21163.30619668,0.00019774,2]
[346228291,1734786646570,-24604.94535973,0.00019774,2]
[346228292,1734786646581,-51911.65360918,0.00019774,2]
[346228293,1734786646592,-5056.71,0.00019774,2]
[346228294,1734786646610,-89800.0,0.00019774,2]
[346228295,1734786646634,-190.74578364,0.00019674,2]
[346228296,1734786646644,-4457.78583564,0.00019774,2]
[346228300,1734786765575,237.16,0.00010137,2]
[346228301,1734786765812,237.16,0.00016813,2]
[346228303,1734787012874,592.73,0.00016788,2]
[346228304,1734787331790,-144426.01293635,0.0002,60]
[346228305,1734787397749,-400000.0,0.0002,60]
[346228306,1734787428243,-155814.35961751,0.0002,60]
[346228308,1734787487379,329.96,0.00018564,30]
[346228309,1734787619880,300000.0,0.0002,60]
[346228311,1734787677021,571977.34170354,0.00013,2]
[346228328,1734787832033,-1000.0,0.00018345,2]
[346228329,1734787832043,-221.47,0.00018436,2]
[346228330,1734787832055,-600.0,0.00018436,2]
[346228331,1734787832098,-160.6,0.00018436,2]
[346228332,1734787832107,-250.0,0.00018526,2]
[346228333,1734787832117,-231.13,0.000186,2]
[346228334,1734787832127,-474.469997,0.00018626,2]
[346228335,1734787832139,-74.480003,0.00018626,2]
[346228336,1734787832149,-250.0,0.0001869,2]
[346228337,1734787832159,-186.44,0.0001872,2]
[346228338,1734787832169,-250.0,0.00018735,2]
[346228339,1734787832180,-680.02,0.0001875,2]
[346228340,1734787832191,-561.65697888,0.00018791,2]
[346228341,1734787832202,-2855.91574988,0.00018791,2]
[346228342,1734787832214,-4850.0,0.00018791,2]
[346228343,1734787832225,-900.0,0.00018791,2]
[346228344,1734787832272,-1482.85614415,0.00018791,2]
[346228345,1734787832348,-413.21193929,0.00018791,2]
[346228346,1734787832367,-971.07,0.00018791,2]
[346228347,1734787832415,-1552.34,0.00018791,2]
[346228348,1734787832426,-10312.9491878,0.00018791,2]
[346228349,1734787832436,-2973.0,0.00018802,2]
[346228350,1734787832446,-664.5,0.0001889,2]
[346228351,1734787832455,-500.0,0.00018978,7]
[346228352,1734787832465,-500.0,0.00018978,7]
[346228353,1734787832475,-500.0,0.00018978,7]
[346228354,1734787832484,-500.0,0.00018978,7]
[346228355,1734787832494,-500.0,0.00018978,7]
[346228356,1734787832503,-500.0,0.00018978,7]
[346228357,1734787832513,-500.0,0.00018978,7]
[346228358,1734787832522,-500.0,0.00018978,7]
[346228359,1734787832531,-500.0,0.00018978,7]
[346228360,1734787832540,-500.0,0.00018978,7]
[346228362,1734787832550,-500.0,0.00018978,7]
[346228363,1734787832562,-500.0,0.00018978,7]
[346228365,1734787832571,-500.0,0.00018978,7]
[346228366,1734787832580,-500.0,0.00018978,7]
[346228368,1734787832590,-470.73,0.00018978,7]
[346228370,1734787832599,-500.0,0.00018978,7]
[346228372,1734787832609,-976.98,0.00019031,2]
[346228373,1734787832618,-150.0,0.00019031,2]
[346228375,1734787832627,-150.0,0.00019031,2]
[346228377,1734787832636,-150.0,0.00019031,2]
[346228378,1734787832646,-150.0,0.00019045,2]
[346228380,1734787832655,-152.47,0.00019045,2]
[346228382,1734787832665,-150.0,0.00019045,2]
[346228384,1734787832674,-592.73,0.00019052,2]
[346228385,1734787832683,-150.0,0.00019078,2]
[346228387,1734787832692,-150.0,0.000191,2]
[346228389,1734787832701,-154.0,0.000191,2]
[346228390,1734787832710,-729.59,0.000191,2]
[346228392,1734787832719,-436.21,0.000191,2]
[346228394,1734787832728,-238.21,0.000191,2]
[346228396,1734787832738,-4401.48964304,0.00019129,2]
[346228398,1734787832749,-2028.03230748,0.00019129,2]
[346228400,1734787832760,-7442.22904172,0.00019129,2]
[346228408,1734787837923,-1205.54890167,0.00019129,2]
[346228409,1734787837986,-2682.394968,0.00019129,2]
[346228410,1734787838049,-1374.12933306,0.00019129,2]
[346228411,1734787838063,-27310.001,0.00019129,2]
[346228412,1734787838172,-11684.04660851,0.00019129,2]
[346228413,1734787838183,-7932.01048661,0.00019129,2]
[346228414,1734787838195,-17505.9267949,0.00019129,2]
[346228415,1734787838206,-872.35,0.00019151,2]
[346228416,1734787838215,-152.75,0.00019151,2]
[346228417,1734787838224,-152.06,0.00019151,2]
[346228418,1734787838234,-726.19,0.00019151,2]
[346228419,1734787838245,-300.0,0.000194,7]
[346228420,1734787838254,-852.8354016,0.00019472,2]
[346228421,1734787838263,-3589.6919,0.00019473,2]
[346228422,1734787838273,-275.87103431,0.00019474,2]
[346228423,1734787838282,-700.0,0.000195,7]
[346228424,1734787838291,-852.83540152,0.00019517,2]
[346228425,1734787838300,-500.0,0.00019518,2]
[346228426,1734787838309,-900.0,0.00019518,2]
[346228427,1734787838320,-611.9,0.00019562,2]
[346228428,1734787838329,-852.83540152,0.00019563,2]
[346228429,1734787838340,-152.76,0.00019563,2]
[346228430,1734787838349,-553.80228189,0.00019563,2]
[346228431,1734787838360,-58.09771811,0.00019563,2]
[346228432,1734787838369,-611.9,0.00019563,2]
[346228433,1734787838379,-611.9,0.00019563,2]
[346228434,1734787838388,-611.9,0.00019563,2]
[346228435,1734787838397,-769.99,0.00019571,2]
[346228436,1734787838406,-500.0,0.00019571,2]
[346228437,1734787838415,-496.56609382,0.00019571,2]
[346228439,1734787838427,-3.43390618,0.00019571,2]
[346228440,1734787838436,-799.9,0.00019571,2]
[346228441,1734787838445,-270.98019665,0.00019571,2]
[346228442,1734787838456,-229.01980335,0.00019571,2]
[346228443,1734787838465,-951.04,0.00019571,2]
[346228444,1734787838475,-726.12,0.00019571,2]
[346228445,1734787838485,-1205.79,0.00019571,2]
[346228446,1734787838494,-500.0,0.00019571,2]
[346228447,1734787838503,-112.54457946,0.00019571,2]
[346228450,1734787838518,-5401.60542054,0.00019571,2]
[346228452,1734787838527,-500.0,0.00019571,2]
[346228454,1734787838536,-500.0,0.00019571,2]
[346228456,1734787838545,-500.0,0.00019571,2]
[346228457,1734787838554,-500.0,0.00019571,2]
[346228458,1734787838564,-500.0,0.00019571,2]
[346228459,1734787838573,-1100.44,0.00019571,2]
[346228460,1734787838582,-500.0,0.00019571,2]
[346228461,1734787838591,-500.0,0.00019571,2]
[346228462,1734787838601,-500.0,0.00019571,2]
[346228463,1734787838613,-500.0,0.00019571,2]
[346228464,1734787838623,-500.0,0.00019571,2]
[346228465,1734787838632,-500.0,0.00019571,2]
[346228466,1734787838641,-500.0,0.00019571,2]
[346228467,1734787838650,-500.0,0.00019571,2]
[346228468,1734787838659,-503.95205546,0.00019571,2]
[346228469,1734787838669,-500.0,0.00019571,2]
[346228470,1734787838678,-500.0,0.00019571,2]
[346228471,1734787838687,-500.0,0.00019571,2]
[346228472,1734787838696,-269.46,0.00019571,2]
[346228473,1734787838705,-534.4,0.00019571,2]
[346228474,1734787838714,-500.0,0.00019571,2]
[346228475,1734787838724,-500.0,0.00019571,2]
[346228476,1734787838733,-500.0,0.00019571,2]
[346228477,1734787838742,-500.0,0.00019571,2]
[346228478,1734787838751,-500.0,0.00019572,2]
[346228479,1734787838761,-199.54332324,0.00019572,2]
[346228480,1734787838777,-300.45667676,0.00019572,2]
[346228481,1734787838786,-500.0,0.00019572,2]
[346228482,1734787838795,-500.0,0.00019572,2]
[346228483,1734787838804,-500.0,0.00019572,2]
[346228484,1734787838815,-500.0,0.00019572,2]
[346228485,1734787838824,-500.0,0.00019572,2]
[346228486,1734787838833,-500.0,0.00019572,2]
[346228487,1734787838842,-500.0,0.00019572,2]
[346228488,1734787838852,-500.0,0.00019572,2]
[346228489,1734787838861,-500.0,0.00019572,2]
[346228490,1734787838870,-500.0,0.00019572,2]
[346228491,1734787838879,-500.0,0.00019572,2]
[346228492,1734787838888,-500.0,0.00019572,2]
[346228493,1734787838897,-500.0,0.00019572,2]
[346228494,1734787838907,-500.0,0.00019572,2]
[346228495,1734787838916,-500.0,0.00019572,2]
[346228496,1734787838925,-500.0,0.00019572,2]
[346228497,1734787838934,-500.0,0.00019572,2]
[346228498,1734787838943,-453.49730286,0.00019572,2]
[346228499,1734787838953,-490.84653331,0.00019572,2]
[346228500,1734787838962,-500.0,0.00019572,2]
[346228501,1734787838971,-500.0,0.00019572,2]
[346228502,1734787838980,-620.28132965,0.00019572,2]
[346228503,1734787838989,-500.0,0.00019572,2]
[346228504,1734787838998,-500.0,0.00019572,2]
[346228505,1734787839007,-210.830299,0.00019572,2]
[346228506,1734787839017,-500.0,0.00019572,2]
[346228507,1734787839026,-500.0,0.00019572,2]
[346228508,1734787839036,-500.0,0.00019572,2]
[346228509,1734787839045,-500.0,0.00019572,2]
[346228510,1734787839054,-490.54419275,0.00019572,2]
[346228511,1734787839066,-259.341385,0.00019572,2]
[346228512,1734787839075,-500.0,0.00019572,2]
[346228513,1734787839085,-444.73188076,0.00019572,2]
[346228514,1734787839094,-500.0,0.00019572,2]
[346228515,1734787839104,-500.0,0.00019572,2]
[346228516,1734787839114,-500.0,0.00019572,2]
[346228517,1734787839126,-500.0,0.00019572,2]
[346228518,1734787839135,-500.0,0.00019572,2]
[346228519,1734787839145,-500.0,0.00019572,2]
[346228520,1734787839159,-500.0,0.00019572,2]
[346228521,1734787839168,-246.51882061,0.00019572,2]
[346228522,1734787839177,-500.0,0.00019572,2]
[346228523,1734787839186,-500.0,0.00019572,2]
[346228524,1734787839197,-500.0,0.00019572,2]
[346228525,1734787839206,-500.0,0.00019572,2]
[346228526,1734787839215,-500.0,0.00019572,2]
[346228527,1734787839224,-500.0,0.00019572,2]
[346228528,1734787839235,-500.0,0.00019572,2]
[346228529,1734787839244,-500.0,0.00019572,2]
[346228530,1734787839254,-500.0,0.00019572,2]
[346228531,1734787839264,-903.23,0.00019572,2]
[346228532,1734787839274,-500.0,0.00019572,2]
[346228533,1734787839283,-500.0,0.00019572,2]
[346228534,1734787839293,-500.0,0.00019572,2]
[346228535,1734787839302,-500.0,0.00019572,2]
[346228536,1734787839311,-500.0,0.00019572,2]
[346228537,1734787839324,-500.0,0.00019572,2]
[346228538,1734787839334,-500.0,0.00019572,2]
[346228539,1734787839343,-549.88,0.00019572,2]
[346228540,1734787839353,-500.0,0.00019572,2]
[346228541,1734787839362,-500.0,0.00019572,2]
[346228542,1734787839372,-500.0,0.00019572,2]
[346228543,1734787839382,-586.55,0.00019572,2]
[346228544,1734787839392,-500.0,0.00019572,2]
[346228545,1734787839401,-500.0,0.00019572,2]
[346228546,1734787839410,-500.0,0.00019572,2]
[346228547,1734787839419,-672.38,0.00019572,2]